fUSD/lending_fUSD_20240628
["ID","MTS","AMOUNT","RATE_DAILY","PERIOD"]
[330574192,1719581499483,-594.55,0.00022082,3]
[330574193,1719581499493,-500.0,0.00022082,3]
[330574194,1719581499505,-731.52,0.00022082,3]
[330574195,1719581499516,-643.77,0.00022082,3]
[330574196,1719581499526,-1699.71,0.00022082,3]
[330574197,1719581499535,-500.0,0.00022082,3]
[330574198,1719581499545,-723.52,0.00022082,3]
[330574199,1719581499555,-1373.99,0.00022082,3]
[330574200,1719581499568,-500.0,0.00022082,3]
[330574201,1719581499579,-875.02,0.00022082,3]
[330574202,1719581499588,-558.04,0.00022082,3]
[330574203,1719581499598,-772.68,0.00022082,3]
[330574204,1719581499611,-500.0,0.00022082,3]
[330574205,1719581499621,-500.0,0.00022082,3]
[330574206,1719581499631,-1704.22,0.00022082,3]
[330574207,1719581499642,-500.0,0.00022082,3]
[330574208,1719581499652,-500.0,0.00022082,3]
[330574209,1719581499662,-500.0,0.00022082,3]
[330574210,1719581499672,-971.16,0.00022082,3]
[330574211,1719581499682,-500.0,0.00022082,3]
[330574212,1719581499692,-1145.01,0.00022082,3]
[330574213,1719581499702,-500.0,0.00022082,3]
[330574214,1719581499714,-500.0,0.00022082,3]
[330574215,1719581499724,-500.0,0.00022082,3]
[330574216,1719581499735,-500.0,0.00022082,3]
[330574217,1719581499745,-500.0,0.00022082,3]
[330574218,1719581499755,-750.08,0.00022082,3]
[330574219,1719581499765,-639.6,0.00022082,3]
[330574220,1719581499775,-748.25,0.00022082,3]
[330574221,1719581499786,-500.0,0.00022082,3]
[330574222,1719581499796,-618.0,0.00022082,3]
[330574223,1719581499806,-905.23,0.00022082,3]
[330574224,1719581499815,-455.14161022,0.00022082,3]
[330574225,1719581499827,-515.0,0.00022082,3]
[330574226,1719581499836,-666.21,0.00022082,3]
[330574227,1719581499846,-1407.05,0.00022082,3]
[330574228,1719581499856,-500.0,0.00022082,3]
[330574229,1719581499866,-500.0,0.00022082,3]
[330574230,1719581499876,-500.0,0.00022082,3]
[330574231,1719581499886,-769.12,0.00022082,3]
[330574232,1719581499895,-674.3,0.00022082,3]
[330574233,1719581499905,-500.0,0.00022082,3]
[330574234,1719581499915,-715.06,0.00022082,3]
[330574235,1719581499925,-284.70835955,0.00022082,3]
[330574236,1719581499935,-500.0,0.00022082,3]
[330574237,1719581499945,-500.0,0.00022082,3]
[330574238,1719581499955,-1278.46,0.00022082,3]
[330574239,1719581499964,-500.0,0.00022082,3]
[330574240,1719581499974,-980.12,0.00022082,3]
[330574241,1719581499984,-500.0,0.00022082,3]
[330574242,1719581499994,-1184.68,0.00022082,3]
[330574243,1719581500004,-500.0,0.00022082,3]
[330574244,1719581500014,-843.12,0.00022082,3]
[330574245,1719581500024,-1239.44,0.00022082,3]
[330574246,1719581500034,-1206.36,0.00022082,3]
[330574247,1719581500043,-1609.18,0.00022082,3]
[330574248,1719581500053,-500.0,0.00022082,3]
[330574249,1719581500063,-500.0,0.00022082,3]
[330574250,1719581500076,-2934.42,0.00022082,3]
[330574251,1719581500086,-1088.64,0.00022082,3]
[330574252,1719581500098,-500.0,0.00022082,3]
[330574253,1719581500109,-500.0,0.00022082,3]
[330574254,1719581500119,-500.0,0.00022082,3]
[330574255,1719581500129,-500.0,0.00022082,3]
[330574256,1719581500139,-500.0,0.00022082,3]
[330574257,1719581500148,-500.0,0.00022082,3]
[330574258,1719581500159,-500.0,0.00022082,3]
[330574259,1719581500168,-1148.41,0.00022082,3]
[330574260,1719581500178,-921.29,0.00022082,3]
[330574261,1719581500188,-500.0,0.00022082,3]
[330574262,1719581500198,-500.0,0.00022082,3]
[330574263,1719581500207,-1294.54,0.00022082,3]
[330574264,1719581500217,-500.0,0.00022082,3]
[330574265,1719581500226,-500.0,0.00022082,3]
[330574266,1719581500236,-1623.02,0.00022082,3]
[330574267,1719581500246,-556.63,0.00022082,3]
[330574268,1719581500256,-500.0,0.00022082,3]
[330574269,1719581500266,-702.96,0.00022082,3]
[330574270,1719581500275,-921.0,0.00022082,3]
[330574271,1719581500285,-500.0,0.00022082,3]
[330574272,1719581500295,-416.59428356,0.00022082,3]
[330574273,1719581500305,-786.23,0.00022082,3]
[330574274,1719581500315,-1040.32,0.00022082,3]
[330574275,1719581500326,-500.0,0.00022082,3]
[330574276,1719581500340,-517.36,0.00022082,3]
[330574277,1719581500350,-4299.14,0.00022082,3]
[330574278,1719581500360,-1890.61,0.00022082,3]
[330574279,1719581500371,-500.0,0.00022082,3]
[330574280,1719581500381,-500.0,0.00022082,3]
[330574281,1719581500392,-500.0,0.00022082,3]
[330574282,1719581500402,-500.0,0.00022082,3]
[330574283,1719581500413,-759.06,0.00022082,3]
[330574284,1719581500427,-500.0,0.00022082,3]
[330574285,1719581500437,-500.0,0.00022082,3]
[330574286,1719581500447,-500.0,0.00022082,3]
[330574287,1719581500458,-1746.61,0.00022082,3]
[330574288,1719581500469,-500.0,0.00022082,3]
[330574289,1719581500479,-500.0,0.00022082,3]
[330574290,1719581500491,-500.0,0.00022082,3]
[330574291,1719581500501,-676.81,0.00022082,3]
[330574292,1719581500512,-951.7,0.00022082,3]
[330574293,1719581500522,-646.11426475,0.00022082,3]
[330574294,1719581500532,-500.0,0.00022082,3]
[330574295,1719581500542,-500.0,0.00022082,3]
[330574296,1719581500553,-500.0,0.00022082,3]
[330574297,1719581500563,-500.0,0.00022082,3]
[330574298,1719581500575,-500.0,0.00022082,3]
[330574299,1719581500587,-1219.38,0.00022082,3]
[330574300,1719581500597,-1193.49,0.00022082,3]
[330574301,1719581500608,-500.0,0.00022082,3]
[330574302,1719581500619,-500.0,0.00022082,3]
[330574303,1719581500629,-500.0,0.00022082,3]
[330574304,1719581500640,-500.0,0.00022082,3]
[330574305,1719581500651,-894.63,0.00022082,3]
[330574306,1719581500661,-630.5,0.00022082,3]
[330574307,1719581500671,-1006.35,0.00022082,3]
[330574308,1719581500681,-1286.65,0.00022082,3]
[330574309,1719581500692,-967.13,0.00022082,3]
[330574310,1719581500702,-500.0,0.00022082,3]
[330574311,1719581500712,-609.79,0.00022082,3]
[330574312,1719581500722,-470.32638904,0.00022082,3]
[330574313,1719581500732,-500.0,0.00022082,3]
[330574314,1719581500741,-12161.34,0.00022082,3]
[330574315,1719581500752,-500.0,0.00022082,3]
[330574316,1719581500761,-500.0,0.00022082,3]
[330574317,1719581500771,-1109.45,0.00022082,3]
[330574318,1719581500781,-1021.69,0.00022082,3]
[330574319,1719581500790,-500.0,0.00022082,3]
[330574320,1719581500800,-1886.28,0.00022082,3]
[330574321,1719581500809,-600.16,0.00022082,3]
[330574322,1719581500820,-500.0,0.00022082,3]
[330574323,1719581500829,-500.0,0.00022082,3]
[330574324,1719581500838,-864.42,0.00022082,3]
[330574325,1719581500847,-500.0,0.00022082,3]
[330574326,1719581500857,-237.5861601,0.00022082,3]
[330574327,1719581500867,-500.0,0.00022082,3]
[330574328,1719581500876,-1150.19,0.00022082,3]
[330574329,1719581500885,-809.83,0.00022082,3]
[330574330,1719581500895,-500.0,0.00022082,3]
[330574331,1719581500905,-1789.65,0.00022082,3]
[330574332,1719581500914,-943.45,0.00022082,3]
[330574333,1719581500924,-2040.73,0.00022082,3]
[330574334,1719581500934,-915.47,0.00022082,3]
[330574335,1719581500943,-959.08,0.00022082,3]
[330574336,1719581500954,-588.4,0.00022082,3]
[330574337,1719581500964,-1564.89,0.00022082,3]
[330574338,1719581500973,-1107.4,0.00022082,3]
[330574339,1719581500983,-500.0,0.00022082,3]
[330574340,1719581500992,-749.67,0.00022082,3]
[330574341,1719581501002,-1028.85,0.00022082,3]
[330574342,1719581501011,-1209.21,0.00022082,3]
[330574343,1719581501021,-565.35,0.00022082,3]
[330574344,1719581501030,-500.0,0.00022082,3]
[330574345,1719581501040,-550.95,0.00022082,3]
[330574346,1719581501049,-500.0,0.00022082,3]
[330574347,1719581501059,-528.27,0.00022082,3]
[330574348,1719581501070,-500.0,0.00022082,3]
[330574349,1719581501079,-811.57,0.00022082,3]
[330574350,1719581501089,-738.44,0.00022082,3]
[330574351,1719581501101,-1190.19,0.00022082,3]
[330574352,1719581501111,-1534.77,0.00022082,3]
[330574353,1719581501120,-500.0,0.00022082,3]
[330574354,1719581501130,-500.0,0.00022082,3]
[330574355,1719581501141,-500.0,0.00022082,3]
[330574356,1719581501150,-538.49,0.00022082,3]
[330574357,1719581501160,-953.75,0.00022082,3]
[330574358,1719581501170,-966.78,0.00022082,3]
[330574359,1719581501180,-500.0,0.00022082,3]
[330574360,1719581501190,-500.0,0.00022082,3]
[330574361,1719581501200,-500.0,0.00022082,3]
[330574362,1719581501209,-1240.95,0.00022082,3]
[330574363,1719581501219,-1394.69,0.00022082,3]
[330574364,1719581501228,-500.0,0.00022082,3]
[330574365,1719581501239,-500.0,0.00022082,3]
[330574366,1719581501249,-579.58,0.00022082,3]
[330574367,1719581501260,-500.0,0.00022082,3]
[330574368,1719581501270,-500.0,0.00022082,3]
[330574369,1719581501279,-1619.45,0.00022082,3]
[330574370,1719581501289,-1557.65,0.00022082,3]
[330574371,1719581501299,-500.0,0.00022082,3]
[330574372,1719581501309,-500.0,0.00022082,3]
[330574373,1719581501319,-500.0,0.00022082,3]
[330574374,1719581501329,-500.0,0.00022082,3]
[330574375,1719581501339,-890.97,0.00022082,3]
[330574376,1719581501349,-544.49,0.00022082,3]
[330574377,1719581501358,-1135.0,0.00022082,3]
[330574378,1719581501368,-645.74,0.00022082,3]
[330574380,1719581501768,-1024.34,0.00022082,3]
[330574381,1719581501794,-500.0,0.00022082,3]
[330574382,1719581501807,-500.0,0.00022082,3]
[330574383,1719581501816,-793.23,0.00022082,3]
[330574384,1719581501830,-500.0,0.00022082,3]
[330574385,1719581501840,-857.23,0.00022082,3]
[330574386,1719581501849,-500.0,0.00022082,3]
[330574387,1719581501859,-2435.24,0.00022082,3]
[330574388,1719581501869,-1164.19,0.00022082,3]
[330574389,1719581501878,-500.0,0.00022082,3]
[330574390,1719581501887,-573.25,0.00022082,3]
[330574391,1719581501896,-1235.12,0.00022082,3]
[330574392,1719581501906,-500.0,0.00022082,3]
[330574393,1719581501916,-500.0,0.00022082,3]
[330574394,1719581501926,-507.95,0.00022082,3]
[330574395,1719581501936,-500.0,0.00022082,3]
[330574396,1719581501946,-500.0,0.00022082,3]
[330574397,1719581501956,-546.48,0.00022082,3]
[330574398,1719581501966,-1497.15,0.00022082,3]
[330574399,1719581501976,-500.0,0.00022082,3]
[330574400,1719581501986,-1025.01,0.00022082,3]
[330574401,1719581501995,-500.0,0.00022082,3]
[330574402,1719581502005,-1511.59,0.00022082,3]
[330574403,1719581502015,-667.81,0.00022082,3]
[330574404,1719581502024,-672.89,0.00022082,3]
[330574405,1719581502034,-500.0,0.00022082,3]
[330574406,1719581502044,-500.0,0.00022082,3]
[330574407,1719581502053,-1143.19,0.00022082,3]
[330574408,1719581502063,-500.0,0.00022082,3]
[330574409,1719581502074,-500.0,0.00022082,3]
[330574410,1719581502084,-983.64,0.00022082,3]
[330574411,1719581502095,-500.0,0.00022082,3]
[330574412,1719581502106,-500.0,0.00022082,3]
[330574413,1719581502116,-500.0,0.00022082,3]
[330574414,1719581502126,-1110.23,0.00022082,3]
[330574415,1719581502136,-621.71789189,0.00022082,3]
[330574416,1719581502146,-546.39,0.00022082,3]
[330574417,1719581502156,-1270.28,0.00022082,3]
[330574418,1719581502165,-500.0,0.00022082,3]
[330574419,1719581502174,-585.88,0.00022082,3]
[330574420,1719581502184,-500.0,0.00022082,3]
[330574421,1719581502194,-500.0,0.00022082,3]
[330574422,1719581502203,-500.0,0.00022082,3]
[330574423,1719581502213,-780.76,0.00022082,3]
[330574424,1719581502222,-500.0,0.00022082,3]
[330574425,1719581502231,-500.0,0.00022082,3]
[330574426,1719581502241,-500.0,0.00022082,3]
[330574427,1719581502251,-500.0,0.00022082,3]
[330574428,1719581502260,-500.0,0.00022082,3]
[330574429,1719581502269,-500.0,0.00022082,3]
[330574430,1719581502278,-500.0,0.00022082,3]
[330574431,1719581502288,-500.0,0.00022082,3]
[330574432,1719581502297,-647.18,0.00022082,3]
[330574433,1719581502306,-962.53,0.00022082,3]
[330574434,1719581502315,-500.0,0.00022082,3]
[330574435,1719581502327,-866.59,0.00022082,3]
[330574436,1719581502336,-500.0,0.00022082,3]
[330574437,1719581502346,-1164.07,0.00022082,3]
[330574438,1719581502355,-500.0,0.00022082,3]
[330574439,1719581502364,-568.2,0.00022082,3]
[330574440,1719581502374,-637.91,0.00022082,3]
[330574441,1719581502383,-509.2,0.00022082,3]
[330574442,1719581502393,-670.28,0.00022082,3]
[330574443,1719581502402,-500.0,0.00022082,3]
[330574444,1719581502414,-1019.47,0.00022082,3]
[330574445,1719581502429,-500.0,0.00022082,3]
[330574446,1719581502439,-500.0,0.00022082,3]
[330574447,1719581502448,-1016.18,0.00022082,3]
[330574448,1719581502461,-500.0,0.00022082,3]
[330574449,1719581502471,-500.0,0.00022082,3]
[330574450,1719581502481,-853.39,0.00022082,3]
[330574451,1719581502492,-500.0,0.00022082,3]
[330574452,1719581502503,-500.0,0.00022082,3]
[330574453,1719581502513,-1356.44,0.00022082,3]
[330574454,1719581502522,-3050.86,0.00022082,3]
[330574455,1719581502532,-500.0,0.00022082,3]
[330574456,1719581502542,-500.0,0.00022082,3]
[330574457,1719581502551,-500.0,0.00022082,3]
[330574458,1719581502561,-500.0,0.00022082,3]
[330574459,1719581502572,-986.96,0.00022082,3]
[330574460,1719581502582,-200.0,0.00022082,3]
[330574461,1719581502592,-500.0,0.00022082,3]
[330574462,1719581502602,-500.0,0.00022082,3]
[330574463,1719581502615,-796.45,0.00022082,3]
[330574464,1719581502625,-985.06,0.00022082,3]
[330574465,1719581502635,-500.0,0.00022082,3]
[330574466,1719581502645,-500.0,0.00022082,3]
[330574467,1719581502655,-500.0,0.00022082,3]
[330574468,1719581502664,-589.69,0.00022082,3]
[330574469,1719581502674,-982.63,0.00022082,3]
[330574470,1719581502684,-500.0,0.00022082,3]
[330574471,1719581502694,-500.0,0.00022082,3]
[330574472,1719581502704,-500.0,0.00022082,3]
[330574473,1719581502713,-500.0,0.00022082,3]
[330574474,1719581502723,-500.0,0.00022082,3]
[330574475,1719581502732,-500.0,0.00022082,3]
[330574476,1719581502742,-500.0,0.00022082,3]
[330574477,1719581502751,-947.64,0.00022082,3]
[330574478,1719581502761,-500.0,0.00022082,3]
[330574479,1719581502770,-1023.07,0.00022082,3]
[330574480,1719581502780,-500.0,0.00022082,3]
[330574481,1719581502790,-500.0,0.00022082,3]
[330574482,1719581502799,-1003.72,0.00022082,3]
[330574483,1719581502809,-2689.38,0.00022082,3]
[330574484,1719581502818,-640.9,0.00022082,3]
[330574485,1719581502831,-500.0,0.00022082,3]
[330574486,1719581502842,-902.32,0.00022082,3]
[330574487,1719581502851,-500.0,0.00022082,3]
[330574488,1719581502861,-2932.71,0.00022082,3]
[330574489,1719581502871,-500.0,0.00022082,3]
[330574490,1719581502881,-500.0,0.00022082,3]
[330574491,1719581502890,-500.0,0.00022082,3]
[330574492,1719581502902,-1128.53,0.00022082,3]
[330574493,1719581502911,-500.0,0.00022082,3]
[330574494,1719581502921,-500.0,0.00022082,3]
[330574495,1719581502932,-500.0,0.00022082,3]
[330574496,1719581502943,-939.79,0.00022082,3]
[330574497,1719581502953,-500.0,0.00022082,3]
[330574498,1719581502964,-841.33,0.00022082,3]
[330574499,1719581502973,-1023.86,0.00022082,3]
[330574500,1719581502983,-500.0,0.00022082,3]
[330574501,1719581502993,-500.0,0.00022082,3]
[330574502,1719581503003,-500.0,0.00022082,3]
[330574503,1719581503013,-2025.77,0.00022082,3]
[330574504,1719581503022,-500.0,0.00022082,3]
[330574505,1719581503031,-1081.13,0.00022082,3]
[330574506,1719581503042,-500.0,0.00022082,3]
[330574507,1719581503051,-500.0,0.00022082,3]
[330574508,1719581503061,-500.0,0.00022082,3]
[330574509,1719581503074,-2534.2,0.00022082,3]
[330574510,1719581503084,-545.92,0.00022082,3]
[330574511,1719581503096,-677.91,0.00022082,3]
[330574512,1719581503107,-594.76,0.00022082,3]
[330574513,1719581503117,-983.37,0.00022082,3]
[330574514,1719581503127,-500.0,0.00022082,3]
[330574515,1719581503138,-500.0,0.00022082,3]
[330574516,1719581503147,-1660.71,0.00022082,3]
[330574517,1719581503157,-500.0,0.00022082,3]
[330574518,1719581503167,-1312.32,0.00022082,3]
[330574519,1719581503176,-1407.01,0.00022082,3]
[330574520,1719581503186,-500.0,0.00022082,3]
[330574521,1719581503197,-500.0,0.00022082,3]
[330574522,1719581503207,-500.0,0.00022082,3]
[330574523,1719581503217,-569.28,0.00022082,3]
[330574524,1719581503227,-1230.66,0.00022082,3]
[330574525,1719581503237,-1222.11,0.00022082,3]
[330574526,1719581503246,-558.19,0.00022082,3]
[330574527,1719581503256,-1083.65,0.00022082,3]
[330574528,1719581503266,-500.0,0.00022082,3]
[330574529,1719581503276,-680.97,0.00022082,3]
[330574530,1719581503285,-806.01,0.00022082,3]
[330574531,1719581503295,-2241.04,0.00022082,3]
[330574532,1719581503304,-500.0,0.00022082,3]
[330574533,1719581503316,-500.0,0.00022082,3]
[330574534,1719581503327,-500.0,0.00022082,3]
[330574535,1719581503338,-1764.98,0.00022082,3]
[330574536,1719581503348,-2272.28,0.00022082,3]
[330574537,1719581503358,-500.0,0.00022082,3]
[330574538,1719581503367,-500.0,0.00022082,3]
[330574539,1719581503377,-2235.87,0.00022082,3]
[330574540,1719581503387,-500.0,0.00022082,3]
[330574541,1719581503396,-491.41897166,0.00022082,3]
[330574542,1719581503406,-500.0,0.00022082,3]
[330574543,1719581503422,-500.0,0.00022082,3]
[330574544,1719581503433,-7520.38,0.00022082,3]
[330574545,1719581503443,-1079.69,0.00022082,3]
[330574546,1719581503455,-730.49,0.00022082,3]
[330574547,1719581503464,-1833.12,0.00022082,3]
[330574548,1719581503474,-800.68,0.00022082,3]
[330574549,1719581503484,-500.0,0.00022082,3]
[330574550,1719581503494,-500.0,0.00022082,3]
[330574551,1719581503505,-625.41,0.00022082,3]
[330574552,1719581503515,-500.0,0.00022082,3]
[330574553,1719581503524,-1293.07,0.00022082,3]
[330574554,1719581503534,-1611.83,0.00022082,3]
[330574555,1719581503543,-500.0,0.00022082,3]
[330574556,1719581503553,-1335.03,0.00022082,3]
[330574557,1719581503562,-500.0,0.00022082,3]
[330574558,1719581503572,-500.0,0.00022082,3]
[330574559,1719581503581,-394.29773456,0.00022082,3]
[330574560,1719581503590,-2017.8,0.00022082,3]
[330574561,1719581503599,-317.7761878,0.00022082,3]
[330574562,1719581503609,-1169.99,0.00022082,3]
[330574563,1719581503618,-559.77,0.00022082,3]
[330574564,1719581503628,-500.0,0.00022082,3]
[330574565,1719581503638,-794.53,0.00022082,3]
[330574566,1719581503648,-500.0,0.00022082,3]
[330574567,1719581503657,-2287.34,0.00022082,3]
[330574568,1719581503675,-500.0,0.00022082,3]
[330574569,1719581503684,-598.26,0.00022082,3]
[330574570,1719581503694,-550.34860052,0.00022082,3]
[330574571,1719581503703,-500.0,0.00022082,3]
[330574572,1719581503713,-848.75,0.00022082,3]
[330574573,1719581503722,-969.34,0.00022082,3]
[330574574,1719581503731,-500.0,0.00022082,3]
[330574575,1719581503741,-721.51,0.00022082,3]
[330574576,1719581503750,-250.0,0.00022082,3]
[330574577,1719581503760,-1520.14,0.00022082,3]
[330574578,1719581503769,-574.54,0.00022082,3]
[330574579,1719581503778,-500.0,0.00022082,3]
[330574580,1719581503788,-753.07,0.00022082,3]
[330574581,1719581503800,-4951.63,0.00022082,3]
[330574582,1719581503810,-1212.49,0.00022082,3]
[330574583,1719581503821,-2156.22,0.00022082,3]
[330574584,1719581503831,-500.0,0.00022082,3]
[330574585,1719581503840,-3115.92,0.00022082,3]
[330574586,1719581503850,-500.0,0.00022082,3]
[330574587,1719581503861,-500.0,0.00022082,3]
[330574588,1719581503871,-500.0,0.00022082,3]
[330574589,1719581503880,-1938.62,0.00022082,3]
[330574590,1719581503890,-752.65,0.00022082,3]
[330574591,1719581503900,-2619.06,0.00022082,3]
[330574592,1719581503910,-609.80444381,0.00022082,3]
[330574593,1719581503919,-1558.14,0.00022082,3]
[330574594,1719581503930,-500.0,0.00022082,3]
[330574595,1719581503941,-1783.25,0.00022082,3]
[330574596,1719581503950,-595.43,0.00022082,3]
[330574597,1719581503960,-739.78,0.00022082,3]
[330574598,1719581503970,-500.0,0.00022082,3]
[330574599,1719581503979,-500.0,0.00022082,3]
[330574600,1719581503990,-500.0,0.00022082,3]
[330574601,1719581504002,-500.0,0.00022082,3]
[330574602,1719581504011,-500.0,0.00022082,3]
[330574603,1719581504021,-591.89,0.00022082,3]
[330574604,1719581504031,-565.44,0.00022082,3]
[330574605,1719581504040,-500.0,0.00022082,3]
[330574606,1719581504051,-998.56,0.00022082,3]
[330574607,1719581504061,-500.0,0.00022082,3]
[330574608,1719581504072,-1690.37,0.00022082,3]
[330574609,1719581504081,-500.0,0.00022082,3]
[330574610,1719581504091,-1544.97,0.00022082,3]
[330574611,1719581504101,-500.0,0.00022082,3]
[330574612,1719581504112,-744.25,0.00022082,3]
[330574613,1719581504123,-1315.66,0.00022082,3]
[330574614,1719581504135,-1759.06,0.00022082,3]
[330574615,1719581504146,-500.0,0.00022082,3]
[330574616,1719581504156,-2970.47,0.00022082,3]
[330574617,1719581504167,-790.85,0.00022082,3]
[330574618,1719581504176,-930.55,0.00022082,3]
[330574619,1719581504186,-385.00563239,0.00022082,3]
[330574620,1719581504195,-500.0,0.00022082,3]
[330574621,1719581504205,-1670.71,0.00022082,3]
[330574622,1719581504214,-500.0,0.00022082,3]
[330574623,1719581504354,-1218.88,0.00022082,3]
[330574624,1719581504363,-1189.97,0.00022082,3]
[330574625,1719581504373,-1119.51,0.00022082,3]
[330574626,1719581504382,-500.0,0.00022082,2]
[330574627,1719581504392,-327.42352663,0.00022082,3]
[330574628,1719581504401,-2631.32,0.00022082,3]
[330574629,1719581504410,-750.26,0.00022082,3]
[330574630,1719581504422,-1504.46,0.00022082,3]
[330574631,1719581504431,-500.0,0.00022082,3]
[330574632,1719581504441,-500.0,0.00022082,3]
[330574633,1719581504450,-1597.63,0.00022082,3]
[330574634,1719581504460,-731.52,0.00022082,3]
[330574635,1719581504470,-500.0,0.00022082,3]
[330574636,1719581504479,-1879.32,0.00022082,3]
[330574637,1719581504489,-277.78342486,0.00022082,3]
[330574638,1719581504501,-1301.36,0.00022082,3]
[330574639,1719581504510,-538.76,0.00022082,3]
[330574640,1719581504520,-500.0,0.00022082,3]
[330574641,1719581504529,-500.0,0.00022082,3]
[330574642,1719581504539,-1143.78,0.00022082,3]
[330574643,1719581504548,-500.0,0.00022082,2]
[330574644,1719581504558,-554.8,0.00022082,3]
[330574645,1719581504567,-500.0,0.00022082,3]
[330574646,1719581504580,-500.0,0.00022082,3]
[330574647,1719581504590,-500.0,0.00022082,3]
[330574648,1719581504600,-500.0,0.00022082,3]
[330574649,1719581504609,-2901.03,0.00022082,3]
[330574650,1719581504619,-1300.34,0.00022082,3]
[330574651,1719581504628,-500.0,0.00022082,3]
[330574652,1719581504637,-1548.67,0.00022082,3]
[330574653,1719581504646,-511.8,0.00022082,3]
[330574654,1719581504656,-2485.2,0.00022082,3]
[330574655,1719581504665,-500.0,0.00022082,3]
[330574656,1719581504675,-500.0,0.00022082,3]
[330574657,1719581504685,-531.92,0.00022082,3]
[330574658,1719581504694,-1224.26,0.00022082,3]
[330574659,1719581504704,-1402.6,0.00022082,3]
[330574660,1719581504713,-500.0,0.00022082,3]
[330574661,1719581504722,-500.0,0.00022082,3]
[330574662,1719581504732,-980.37,0.00022082,3]
[330574663,1719581504741,-500.0,0.00022082,3]
[330574664,1719581504750,-3943.37,0.00022082,3]
[330574665,1719581504759,-1173.47,0.00022082,3]
[330574666,1719581504768,-500.0,0.00022082,3]
[330574667,1719581504777,-500.0,0.00022082,3]
[330574668,1719581504786,-500.0,0.00022082,3]
[330574669,1719581504795,-2122.78,0.00022082,3]
[330574670,1719581504804,-500.0,0.00022082,3]
[330574671,1719581504813,-700.74,0.00022082,3]
[330574672,1719581504826,-2694.47,0.00022082,3]
[330574673,1719581504835,-500.0,0.00022082,3]
[330574674,1719581504844,-2269.54,0.00022082,3]
[330574675,1719581504853,-1411.57,0.00022082,3]
[330574676,1719581504863,-500.0,0.00022082,3]
[330574677,1719581504872,-1915.65,0.00022082,3]
[330574678,1719581504882,-1443.34,0.00022082,3]
[330574679,1719581504892,-1782.46,0.00022082,3]
[330574680,1719581504901,-2259.69,0.00022082,3]
[330574681,1719581504911,-500.0,0.00022082,3]
[330574682,1719581504921,-1144.19,0.00022082,3]
[330574683,1719581504931,-500.0,0.00022082,3]
[330574684,1719581504940,-626.04,0.00022082,3]
[330574685,1719581504949,-488.83673772,0.00022082,3]
[330574686,1719581504958,-1933.95,0.00022082,3]
[330574687,1719581504968,-500.0,0.00022082,3]
[330574688,1719581504977,-1200.64,0.00022082,3]
[330574689,1719581504986,-500.0,0.00022082,3]
[330574690,1719581504995,-500.0,0.00022082,3]
[330574691,1719581505005,-500.0,0.00022082,3]
[330574692,1719581505014,-500.0,0.00022082,3]